{"text_format":"2","workbook":"xlsx","n_sheets":2,"sheets":["Update Business Records","List"],"not_rendered":{"charts":0,"images":1,"macros":0,"external_links":0,"defined_names":1,"comments":1,"pivot_tables":0},"unopened":[],"bounds":{"document_bytes":16777216,"sheet_cells":100000,"run_cost":"one","rows_first":2000,"rows_last":500,"rows_between":2000,"halvings":0,"cell_chars":16384,"cell_head_chars":4096},"cells_cut":0,"cells_raw":0,"read":"whole","date_system":"1900"}

{"sheet":"Update Business Records","index":0,"n_rows":38,"n_cols":8,"rows_kept":38,"cut":false,"hidden":false,"merged":[[10,2,10,4],[12,6,12,7],[1,0,1,7],[2,0,2,7],[0,0,0,7],[3,0,3,7],[6,2,6,4],[7,2,7,4],[8,2,8,4],[9,2,9,4],[12,0,12,4]]}
[]
["13-000-RBIZZ"]
["team@rbizz.com.au"]
["BUSINESS RECORD KEEPING"]
[null,null,null,"IMPORTANT - Please ensure all transactions fall within the first and last date of the financial year."]
[]
[null,"Business name:"]
[null,"Business ABN:"]
[null,"Commencement date:"]
[null,"Business activity:"]
[null,"Business address:"]
[]
["Business Record Keeping",{"$nulls":5},"Business Summary"]
["Date","Description","Type","Amount","Notes",null,null,"Amount"]
[{"$nulls":6},"INCOME:"]
[{"$nulls":6},"Business Income",{"$f":"SUMIF($C$15:$C$507,G16,$D$15:$D$507)","v":0}]
[{"$nulls":6},"Total Business Income",{"$f":"SUM(H16)","v":0}]
[{"$nulls":6},"EXPENSE:"]
[{"$nulls":6},"Stock/goods purchases",{"$f":"SUMIF($C$15:$C$507,G19,$D$15:$D$507)","v":0}]
[{"$nulls":6},"Asset/equipment purchase",0]
[{"$nulls":6},"Contractor, sub-contractor and commission expenses",0]
[{"$nulls":6},"Superannuation expenses",0]
[{"$nulls":6},"Rent expenses",0]
[{"$nulls":6},"Interest expenses",0]
[{"$nulls":6},"Motor vehicle expenses",0]
[{"$nulls":6},"Repair and maintenance",0]
[{"$nulls":6},"Home office expenses",0]
[{"$nulls":6},"Internet expenses",0]
[{"$nulls":6},"Mobile phone expenses",0]
[{"$nulls":6},"Insurance expenses",0]
[{"$nulls":6},"Travel expenses",0]
[{"$nulls":6},"Advertising/marketing expenses",0]
[{"$nulls":6},"Delivery/freight expenses",0]
[{"$nulls":6},"Self education expenses",0]
[{"$nulls":6},"Other expenses",0]
[{"$nulls":6},"Total Business Expenses",{"$f":"SUM(H19:H35)","v":0}]
[]
[{"$nulls":6},"Net Profit/Loss",{"$f":"+H17-H36","v":0}]

{"sheet":"List","index":1,"n_rows":18,"n_cols":1,"rows_kept":18,"cut":false,"hidden":true,"merged":[]}
["Business Income"]
["Stock/goods purchases"]
["Asset/equipment purchase"]
["Contractor, sub-contractor and commission expenses"]
["Superannuation expenses"]
["Rent expenses"]
["Interest expenses"]
["Motor vehicle expenses"]
["Repair and maintenance"]
["Home office expenses"]
["Internet expenses"]
["Mobile phone expenses"]
["Insurance expenses"]
["Travel expenses"]
["Advertising/marketing expenses"]
["Delivery/freight expenses"]
["Self education expenses"]
["Other expenses"]